[Event "*** Titled Tuesday Blitz"]
[Site "Chess.com"]
[Date "2021.04.20"]
[Round "10"]
[White "Salem-AR"]
[Black "RD4ever"]
[Result "0-1"]
[WhiteElo "2956"]
[BlackElo "2892"]
[TimeControl "180+1"]
[EndTime "11:56:32 PDT"]
[Termination "RD4ever won by resignation"]

1. d4 {[%clk 0:02:59.9]} 1... d5 {[%clk 0:03:00]} 2. c4 {[%clk 0:03:00.3]} 2...
e6 {[%clk 0:03:00.6]} 3. Nc3 {[%clk 0:03:00.3]} 3... c5 {[%clk 0:02:53.8]} 4.
cxd5 {[%clk 0:02:59.8]} 4... exd5 {[%clk 0:02:54.7]} 5. Nf3 {[%clk 0:02:59.8]}
5... Nc6 {[%clk 0:02:54.8]} 6. g3 {[%clk 0:03:00]} 6... Nf6 {[%clk 0:02:54.5]}
7. Bg2 {[%clk 0:03:00.3]} 7... cxd4 {[%clk 0:02:55.1]} 8. Nxd4 {[%clk
0:03:00.5]} 8... Bc5 {[%clk 0:02:55.7]} 9. Nb3 {[%clk 0:02:59.3]} 9... Bb6
{[%clk 0:02:55.9]} 10. O-O {[%clk 0:02:59.9]} 10... d4 {[%clk 0:02:52.8]} 11.
Na4 {[%clk 0:02:59.2]} 11... O-O {[%clk 0:02:49.1]} 12. Nxb6 {[%clk 0:02:59.3]}
12... axb6 {[%clk 0:02:28.3]} 13. e4 {[%clk 0:02:58.2]} 13... Bg4 {[%clk
0:02:16.1]} 14. f3 {[%clk 0:02:57.9]} 14... Be6 {[%clk 0:02:15.9]} 15. Bd2
{[%clk 0:02:49.7]} 15... Nd7 {[%clk 0:02:10.9]} 16. f4 {[%clk 0:02:33.6]} 16...
Nc5 {[%clk 0:02:09.8]} 17. Nxc5 {[%clk 0:02:02.1]} 17... bxc5 {[%clk 0:02:10.7]}
18. b3 {[%clk 0:02:03]} 18... f6 {[%clk 0:02:02.4]} 19. Qh5 {[%clk 0:01:33.2]}
19... c4 {[%clk 0:01:23.1]} 20. bxc4 {[%clk 0:01:33.2]} 20... Bxc4 {[%clk
0:01:24]} 21. Rfb1 {[%clk 0:01:32.6]} 21... Rf7 {[%clk 0:01:13.5]} 22. Qc5
{[%clk 0:01:30.1]} 22... Bxa2 {[%clk 0:01:07.1]} 23. Rb2 {[%clk 0:01:17.4]}
23... Be6 {[%clk 0:01:06.4]} 24. Rab1 {[%clk 0:01:18.2]} 24... Qc8 {[%clk
0:00:58.4]} 25. f5 {[%clk 0:01:11.2]} 25... Ne5 {[%clk 0:00:52.4]} 26. Qxd4
{[%clk 0:01:01.3]} 26... Rd7 {[%clk 0:00:52.4]} 27. Qc3 {[%clk 0:00:53.5]} 27...
Bf7 {[%clk 0:00:51.5]} 28. Qxc8+ {[%clk 0:00:43.7]} 28... Rxc8 {[%clk
0:00:52.4]} 29. Bf4 {[%clk 0:00:42.3]} 29... Rcc7 {[%clk 0:00:41]} 30. Rb5
{[%clk 0:00:35.5]} 30... Re7 {[%clk 0:00:37.8]} 31. Bf1 {[%clk 0:00:34.5]} 31...
Be8 {[%clk 0:00:37.7]} 32. Bxe5 {[%clk 0:00:30.2]} 32... Rxe5 {[%clk 0:00:23.3]}
33. Rxe5 {[%clk 0:00:25.3]} 33... fxe5 {[%clk 0:00:24.2]} 34. Rb6 {[%clk
0:00:23.8]} 34... Kf8 {[%clk 0:00:23.1]} 35. Kf2 {[%clk 0:00:21.8]} 35... Bc6
{[%clk 0:00:23.2]} 36. Bd3 {[%clk 0:00:21.6]} 36... Ke7 {[%clk 0:00:23.1]} 37.
Ke3 {[%clk 0:00:21.6]} 37... Kd6 {[%clk 0:00:23.6]} 38. Rb1 {[%clk 0:00:21.5]}
38... Rc8 {[%clk 0:00:23.8]} 39. g4 {[%clk 0:00:21.8]} 39... Ra8 {[%clk
0:00:23.5]} 40. Rd1 {[%clk 0:00:22.1]} 40... Kc5 {[%clk 0:00:23.2]} 41. h4
{[%clk 0:00:21.2]} 41... Ra3 {[%clk 0:00:21.5]} 42. Ke2 {[%clk 0:00:20.2]} 42...
Ra2+ {[%clk 0:00:20.7]} 43. Ke3 {[%clk 0:00:21]} 43... Rh2 {[%clk 0:00:20.6]}
44. g5 {[%clk 0:00:14.2]} 44... Rh3+ {[%clk 0:00:20.5]} 45. Ke2 {[%clk 0:00:13]}
45... Rxh4 {[%clk 0:00:20.4]} 46. Rf1 {[%clk 0:00:08.9]} 46... Kd4 {[%clk
0:00:15.4]} 47. f6 {[%clk 0:00:03]} 47... gxf6 {[%clk 0:00:16.3]} 48. gxf6
{[%clk 0:00:03.9]} 48... Be8 {[%clk 0:00:14.1]} 49. Bb1 {[%clk 0:00:02.2]} 49...
Bh5+ {[%clk 0:00:13.9]} 50. Kf2 {[%clk 0:00:02.4]} 50... Rf4+ {[%clk 0:00:12.2]}
51. Kg1 {[%clk 0:00:02.7]} 51... Rxf1+ {[%clk 0:00:12.6]} 52. Kxf1 {[%clk
0:00:03.6]} 52... Bf7 {[%clk 0:00:13.5]} 53. Kf2 {[%clk 0:00:04.5]} 53... b5
{[%clk 0:00:13.8]} 54. Ke2 {[%clk 0:00:04.2]} 54... h5 {[%clk 0:00:14]} 55. Kd2
{[%clk 0:00:04.9]} 55... b4 {[%clk 0:00:14.1]} 56. Kc2 {[%clk 0:00:05.5]} 56...
h4 {[%clk 0:00:14.1]} 57. Kb2 {[%clk 0:00:06.2]} 57... h3 {[%clk 0:00:14.4]} 58.
Ba2 {[%clk 0:00:06.9]} 58... h2 {[%clk 0:00:13.9]} 59. Bxf7 {[%clk 0:00:06.4]}
59... h1=Q {[%clk 0:00:14.8]} 60. Bd5 {[%clk 0:00:06.9]} 60... Qg2+ {[%clk
0:00:15]} 61. Kb3 {[%clk 0:00:06.9]} 61... Qf3+ {[%clk 0:00:15.1]} 62. Kxb4
{[%clk 0:00:07.7]} 62... Qxf6 {[%clk 0:00:16]} 0-1

[Event "*** Titled Tuesday Blitz"]
[Site "Chess.com"]
[Date "2021.04.20"]
[Round "10"]
[White "Witik"]
[Black "Legendinunknown"]
[Result "0-1"]
[WhiteElo "2663"]
[BlackElo "2596"]
[TimeControl "180+1"]
[EndTime "11:56:32 PDT"]
[Termination "Legendinunknown won on time"]

1. d4 {[%clk 0:02:57.9]} 1... Nf6 {[%clk 0:02:59.6]} 2. Bf4 {[%clk 0:02:57.7]}
2... g6 {[%clk 0:02:58.6]} 3. Nf3 {[%clk 0:02:57.8]} 3... Bg7 {[%clk 0:02:58.3]}
4. e3 {[%clk 0:02:58.3]} 4... O-O {[%clk 0:02:58.4]} 5. Be2 {[%clk 0:02:58]}
5... d6 {[%clk 0:02:59]} 6. c4 {[%clk 0:02:58.1]} 6... Nc6 {[%clk 0:02:59.1]} 7.
Nc3 {[%clk 0:02:58.4]} 7... Nd7 {[%clk 0:02:58.7]} 8. h3 {[%clk 0:02:57.2]} 8...
e5 {[%clk 0:02:58.9]} 9. Bh2 {[%clk 0:02:57.8]} 9... Re8 {[%clk 0:02:53.7]} 10.
O-O {[%clk 0:02:54.5]} 10... exd4 {[%clk 0:02:53]} 11. exd4 {[%clk 0:02:53.2]}
11... Nf6 {[%clk 0:02:53]} 12. Re1 {[%clk 0:02:43.4]} 12... Bf5 {[%clk
0:02:45.2]} 13. d5 {[%clk 0:02:42.8]} 13... Ne7 {[%clk 0:02:36.6]} 14. Nd4
{[%clk 0:02:39.7]} 14... Bd7 {[%clk 0:02:35.6]} 15. Qd2 {[%clk 0:02:02.1]} 15...
Nf5 {[%clk 0:02:31.3]} 16. Nxf5 {[%clk 0:02:00.6]} 16... Bxf5 {[%clk 0:02:32.2]}
17. Bf3 {[%clk 0:01:57.7]} 17... h5 {[%clk 0:02:21.7]} 18. Bf4 {[%clk
0:01:55.8]} 18... Qd7 {[%clk 0:02:18.8]} 19. Re3 {[%clk 0:01:30.3]} 19... Rxe3
{[%clk 0:02:11]} 20. Qxe3 {[%clk 0:01:30.4]} 20... a6 {[%clk 0:02:07.4]} 21. Re1
{[%clk 0:01:25.5]} 21... Re8 {[%clk 0:01:54.8]} 22. Qd2 {[%clk 0:01:25.4]} 22...
Nh7 {[%clk 0:01:48.6]} 23. Rxe8+ {[%clk 0:01:13.1]} 23... Qxe8 {[%clk
0:01:49.5]} 24. Ne2 {[%clk 0:00:48.9]} 24... Be5 {[%clk 0:01:36.7]} 25. Qe3
{[%clk 0:00:44.7]} 25... Nf6 {[%clk 0:01:30.4]} 26. Bxe5 {[%clk 0:00:43.2]}
26... Qxe5 {[%clk 0:01:31.3]} 27. Qxe5 {[%clk 0:00:42]} 27... dxe5 {[%clk
0:01:32.2]} 28. Nc3 {[%clk 0:00:35.3]} 28... Nd7 {[%clk 0:01:26.5]} 29. b4
{[%clk 0:00:27.7]} 29... b6 {[%clk 0:01:23.8]} 30. Be2 {[%clk 0:00:20.1]} 30...
Kf8 {[%clk 0:01:20.2]} 31. g4 {[%clk 0:00:18]} 31... hxg4 {[%clk 0:01:18.4]} 32.
hxg4 {[%clk 0:00:18.9]} 32... Bc2 {[%clk 0:01:18.9]} 33. Kf1 {[%clk 0:00:19]}
33... Ke7 {[%clk 0:01:11]} 34. Ke1 {[%clk 0:00:18.8]} 34... g5 {[%clk
0:01:11.4]} 35. Kd2 {[%clk 0:00:18.9]} 35... Bg6 {[%clk 0:01:11.3]} 36. a3
{[%clk 0:00:18.4]} 36... f5 {[%clk 0:01:08.6]} 37. gxf5 {[%clk 0:00:18.4]} 37...
Bxf5 {[%clk 0:01:09.5]} 38. Ke3 {[%clk 0:00:18.4]} 38... Nf6 {[%clk 0:00:58.5]}
39. c5 {[%clk 0:00:13.7]} 39... bxc5 {[%clk 0:00:54.5]} 40. bxc5 {[%clk
0:00:14.1]} 40... Bc8 {[%clk 0:00:53.1]} 41. Bc4 {[%clk 0:00:11.3]} 41... Ng4+
{[%clk 0:00:52.1]} 42. Ke2 {[%clk 0:00:11.5]} 42... Nf6 {[%clk 0:00:51.7]} 43.
Ke3 {[%clk 0:00:09.2]} 43... Bb7 {[%clk 0:00:51.1]} 44. f3 {[%clk 0:00:04.7]}
44... Bc8 {[%clk 0:00:46.7]} 45. a4 {[%clk 0:00:04.7]} 45... g4 {[%clk
0:00:45.8]} 46. fxg4 {[%clk 0:00:04.1]} 46... Nxg4+ {[%clk 0:00:45.8]} 47. Ke4
{[%clk 0:00:04.5]} 47... Kf6 {[%clk 0:00:43.5]} 48. d6 {[%clk 0:00:04.9]} 48...
Bf5+ {[%clk 0:00:42.2]} 49. Kd5 {[%clk 0:00:05.1]} 49... Ne3+ {[%clk 0:00:41.8]}
50. Kc6 {[%clk 0:00:05.4]} 50... Nxc4 {[%clk 0:00:40.9]} 51. d7 {[%clk
0:00:04.9]} 51... Ke7 {[%clk 0:00:30.9]} 52. Kxc7 {[%clk 0:00:05.4]} 52... Bxd7
{[%clk 0:00:30.8]} 53. Nd5+ {[%clk 0:00:06]} 53... Ke6 {[%clk 0:00:30.3]} 54.
Nb6 {[%clk 0:00:06.5]} 54... Na5 {[%clk 0:00:17.7]} 55. Nxd7 {[%clk 0:00:06.3]}
55... e4 {[%clk 0:00:18.1]} 56. c6 {[%clk 0:00:06.6]} 56... e3 {[%clk
0:00:17.1]} 57. Nc5+ {[%clk 0:00:07]} 57... Kd5 {[%clk 0:00:16.8]} 58. Nd3
{[%clk 0:00:07]} 58... Nxc6 {[%clk 0:00:16.8]} 59. Kb6 {[%clk 0:00:07.4]} 59...
Kd4 {[%clk 0:00:16.1]} 60. Ne1 {[%clk 0:00:07.4]} 60... Nb4 {[%clk 0:00:16.3]}
61. Ka5 {[%clk 0:00:07.1]} 61... Kc3 {[%clk 0:00:16.6]} 62. Nf3 {[%clk 0:00:07]}
62... e2 {[%clk 0:00:16.9]} 63. Kb6 {[%clk 0:00:06.6]} 63... Kd3 {[%clk
0:00:16]} 64. a5 {[%clk 0:00:06.9]} 64... Ke3 {[%clk 0:00:16]} 65. Ne1 {[%clk
0:00:06]} 65... Kf2 {[%clk 0:00:16.2]} 0-1

[Event "*** Titled Tuesday Blitz"]
[Site "Chess.com"]
[Date "2021.04.20"]
[Round "10"]
[White "Kale36"]
[Black "dmitrijiIM"]
[Result "0-1"]
[WhiteElo "2325"]
[BlackElo "2549"]
[TimeControl "180+1"]
[EndTime "11:56:32 PDT"]
[Termination "dmitrijiIM won on time"]

1. d4 {[%clk 0:03:00.9]} 1... Nf6 {[%clk 0:02:59.7]} 2. Nc3 {[%clk 0:03:00.7]}
2... d5 {[%clk 0:02:59.1]} 3. Bg5 {[%clk 0:03:00.6]} 3... c6 {[%clk 0:02:53.8]}
4. e3 {[%clk 0:03:00.3]} 4... Bf5 {[%clk 0:02:53.4]} 5. f4 {[%clk 0:02:59.7]}
5... e6 {[%clk 0:02:52.6]} 6. Nf3 {[%clk 0:02:59.6]} 6... Nbd7 {[%clk
0:02:52.2]} 7. Bd3 {[%clk 0:02:59.6]} 7... h6 {[%clk 0:02:52.1]} 8. Bh4 {[%clk
0:02:59.2]} 8... Be7 {[%clk 0:02:52.7]} 9. O-O {[%clk 0:02:58.4]} 9... b5 {[%clk
0:02:49.8]} 10. Ne5 {[%clk 0:02:57.8]} 10... Rc8 {[%clk 0:02:49]} 11. a4 {[%clk
0:02:44.6]} 11... b4 {[%clk 0:02:41.3]} 12. Ne2 {[%clk 0:02:44.2]} 12... Ne4
{[%clk 0:02:40]} 13. Be1 {[%clk 0:02:27]} 13... h5 {[%clk 0:02:30.8]} 14. Ng3
{[%clk 0:02:26.5]} 14... Nxg3 {[%clk 0:02:29.4]} 15. Bxg3 {[%clk 0:02:25.8]}
15... Nf6 {[%clk 0:02:29]} 16. Bh4 {[%clk 0:01:57.8]} 16... Ne4 {[%clk
0:02:26.8]} 17. Bxe7 {[%clk 0:01:57.5]} 17... Qxe7 {[%clk 0:02:27.7]} 18. Qe1
{[%clk 0:01:46.5]} 18... f6 {[%clk 0:02:09.8]} 19. Bxe4 {[%clk 0:01:40.1]} 19...
Bxe4 {[%clk 0:02:07.6]} 20. Nd3 {[%clk 0:01:39.6]} 20... b3 {[%clk 0:01:55.5]}
21. Nc5 {[%clk 0:01:16]} 21... Bxc2 {[%clk 0:01:53.4]} 22. Ra3 {[%clk
0:01:12.5]} 22... O-O {[%clk 0:01:40.1]} 23. Nxb3 {[%clk 0:01:11.1]} 23... Bxb3
{[%clk 0:01:33.7]} 24. Rxb3 {[%clk 0:01:12]} 24... c5 {[%clk 0:01:33.9]} 25. Qe2
{[%clk 0:00:55]} 25... Qe8 {[%clk 0:01:07.7]} 26. Rb5 {[%clk 0:00:50.9]} 26...
c4 {[%clk 0:00:57.4]} 27. Qd2 {[%clk 0:00:44.1]} 27... f5 {[%clk 0:00:50.8]} 28.
Qb4 {[%clk 0:00:43.4]} 28... Rb8 {[%clk 0:00:49.4]} 29. Rf3 {[%clk 0:00:40.6]}
29... a6 {[%clk 0:00:48.1]} 30. Rxb8 {[%clk 0:00:37.7]} 30... Qxb8 {[%clk
0:00:49]} 31. Qe7 {[%clk 0:00:37.1]} 31... Qxb2 {[%clk 0:00:09.9]} 32. h3 {[%clk
0:00:35.9]} 32... h4 {[%clk 0:00:06.2]} 33. Qxe6+ {[%clk 0:00:34.9]} 33... Rf7
{[%clk 0:00:04]} 34. Qxd5 {[%clk 0:00:33.2]} 34... c3 {[%clk 0:00:03.8]} 35.
Qd8+ {[%clk 0:00:30.1]} 35... Rf8 {[%clk 0:00:03.3]} 36. Qd5+ {[%clk 0:00:29.4]}
36... Kh7 {[%clk 0:00:03.8]} 37. Rf1 {[%clk 0:00:26.8]} 37... Qd2 {[%clk
0:00:02.1]} 38. Qc5 {[%clk 0:00:17.2]} 38... Qxe3+ {[%clk 0:00:02]} 39. Kh1
{[%clk 0:00:16.6]} 39... Rf6 {[%clk 0:00:02.7]} 40. Rf3 {[%clk 0:00:10.1]} 40...
Qe1+ {[%clk 0:00:02.7]} 41. Kh2 {[%clk 0:00:10.6]} 41... c2 {[%clk 0:00:02.3]}
42. Qxc2 {[%clk 0:00:10.1]} 42... Qe4 {[%clk 0:00:03.2]} 43. Qf2 {[%clk
0:00:09.6]} 43... Rh6 {[%clk 0:00:02.3]} 44. Qe3 {[%clk 0:00:07]} 44... Re6
{[%clk 0:00:01.5]} 45. Qf2 {[%clk 0:00:05.5]} 45... Rh6 {[%clk 0:00:01.8]} 46.
Qe3 {[%clk 0:00:05.3]} 46... Qd5 {[%clk 0:00:02.1]} 47. Qe5 {[%clk 0:00:05.1]}
47... Qf7 {[%clk 0:00:02.8]} 48. d5 {[%clk 0:00:05]} 48... Rb6 {[%clk
0:00:03.1]} 49. Rd3 {[%clk 0:00:04.9]} 49... Qg6 {[%clk 0:00:02.9]} 50. Qe3
{[%clk 0:00:04.1]} 50... Rb1 {[%clk 0:00:02.5]} 51. d6 {[%clk 0:00:03.5]} 51...
Rb2 {[%clk 0:00:03]} 52. Rd2 {[%clk 0:00:02.6]} 52... Qg3+ {[%clk 0:00:02.6]}
53. Qxg3 {[%clk 0:00:02.5]} 53... hxg3+ {[%clk 0:00:03.5]} 54. Kxg3 {[%clk
0:00:02.6]} 54... Rxd2 {[%clk 0:00:04.4]} 55. Kh4 {[%clk 0:00:03]} 55... Rxd6
{[%clk 0:00:05.1]} 56. Kg5 {[%clk 0:00:03.9]} 56... Rd4 {[%clk 0:00:06]} 57. g4
{[%clk 0:00:04.5]} 57... Rxa4 {[%clk 0:00:06.9]} 58. h4 {[%clk 0:00:03.6]} 58...
fxg4 {[%clk 0:00:06.9]} 59. h5 {[%clk 0:00:04.5]} 59... Ra5+ {[%clk 0:00:06.1]}
60. f5 {[%clk 0:00:05.4]} 60... Rb5 {[%clk 0:00:06]} 61. h6 {[%clk 0:00:06.3]}
61... gxh6+ {[%clk 0:00:06.2]} 62. Kf6 {[%clk 0:00:06.2]} 62... g3 {[%clk
0:00:06.2]} 63. Ke7 {[%clk 0:00:07.1]} 63... Rxf5 {[%clk 0:00:06.4]} 0-1

[Event "*** Titled Tuesday Blitz"]
[Site "Chess.com"]
[Date "2021.04.20"]
[Round "10"]
[White "alejogarcia1999"]
[Black "UCantHandleDenker"]
[Result "1/2-1/2"]
[WhiteElo "2468"]
[BlackElo "2590"]
[TimeControl "180+1"]
[EndTime "11:56:37 PDT"]
[Termination "Game drawn - insufficient material"]

1. d4 {[%clk 0:03:00.9]} 1... d6 {[%clk 0:02:56.8]} 2. g3 {[%clk 0:02:59.2]}
2... Nf6 {[%clk 0:02:55.9]} 3. Bg2 {[%clk 0:02:59.5]} 3... Nbd7 {[%clk
0:02:56.5]} 4. c4 {[%clk 0:02:58.8]} 4... e5 {[%clk 0:02:56.8]} 5. Nc3 {[%clk
0:02:58.4]} 5... Be7 {[%clk 0:02:57.3]} 6. e4 {[%clk 0:02:58.3]} 6... O-O {[%clk
0:02:57.7]} 7. Nf3 {[%clk 0:02:58.2]} 7... c6 {[%clk 0:02:58.3]} 8. O-O {[%clk
0:02:58.3]} 8... a6 {[%clk 0:02:58.2]} 9. b3 {[%clk 0:02:56.6]} 9... Re8 {[%clk
0:02:56]} 10. h3 {[%clk 0:02:51.1]} 10... Bf8 {[%clk 0:02:53.1]} 11. Re1 {[%clk
0:02:49.9]} 11... b5 {[%clk 0:02:52.7]} 12. Be3 {[%clk 0:02:33.1]} 12... Bb7
{[%clk 0:02:47.5]} 13. Qc2 {[%clk 0:02:31]} 13... Qc7 {[%clk 0:02:32.4]} 14. a4
{[%clk 0:02:25.1]} 14... b4 {[%clk 0:02:30.6]} 15. Na2 {[%clk 0:02:22.2]} 15...
a5 {[%clk 0:02:30.4]} 16. Nc1 {[%clk 0:02:16.7]} 16... c5 {[%clk 0:02:12.3]} 17.
d5 {[%clk 0:02:15.6]} 17... g6 {[%clk 0:02:08.5]} 18. Nh4 {[%clk 0:02:10.5]}
18... Bg7 {[%clk 0:02:07.5]} 19. Nd3 {[%clk 0:02:09.6]} 19... Nh5 {[%clk
0:02:01.2]} 20. Qe2 {[%clk 0:02:06]} 20... Nhf6 {[%clk 0:01:53.6]} 21. Qd2
{[%clk 0:01:58.2]} 21... Kh8 {[%clk 0:01:40.9]} 22. Re2 {[%clk 0:01:45.8]} 22...
Rad8 {[%clk 0:01:34.5]} 23. Rf1 {[%clk 0:01:44.5]} 23... Bc8 {[%clk 0:01:34.1]}
24. Bg5 {[%clk 0:01:39]} 24... Bb7 {[%clk 0:01:21.7]} 25. Kh2 {[%clk 0:01:32.6]}
25... Ra8 {[%clk 0:01:19.4]} 26. Qd1 {[%clk 0:00:46.5]} 26... Ng8 {[%clk
0:01:16.2]} 27. Bc1 {[%clk 0:00:44.9]} 27... Rf8 {[%clk 0:01:12.8]} 28. f4
{[%clk 0:00:44.6]} 28... exf4 {[%clk 0:01:07.9]} 29. gxf4 {[%clk 0:00:45.5]}
29... Rae8 {[%clk 0:01:06.9]} 30. Bb2 {[%clk 0:00:44.6]} 30... Qd8 {[%clk
0:01:04.9]} 31. Nf3 {[%clk 0:00:41.3]} 31... h6 {[%clk 0:01:01.9]} 32. e5 {[%clk
0:00:40.6]} 32... Bc8 {[%clk 0:00:53.2]} 33. exd6 {[%clk 0:00:37.7]} 33... Rxe2
{[%clk 0:00:51]} 34. Qxe2 {[%clk 0:00:37.4]} 34... Re8 {[%clk 0:00:50.3]} 35.
Bxg7+ {[%clk 0:00:37.1]} 35... Kxg7 {[%clk 0:00:50.6]} 36. Qb2+ {[%clk
0:00:37.3]} 36... Ndf6 {[%clk 0:00:49.2]} 37. Nxc5 {[%clk 0:00:29.5]} 37... Qxd6
{[%clk 0:00:49.1]} 38. Nd3 {[%clk 0:00:29.2]} 38... Bf5 {[%clk 0:00:49.6]} 39.
Qd4 {[%clk 0:00:27]} 39... Bxd3 {[%clk 0:00:48.3]} 40. Qxd3 {[%clk 0:00:27.1]}
40... Qxf4+ {[%clk 0:00:48]} 41. Kg1 {[%clk 0:00:27.7]} 41... Re4 {[%clk
0:00:44.1]} 42. Nd2 {[%clk 0:00:19.3]} 42... Qe3+ {[%clk 0:00:41.8]} 43. Qxe3
{[%clk 0:00:19.5]} 43... Rxe3 {[%clk 0:00:42]} 44. Rf3 {[%clk 0:00:19.4]} 44...
Re2 {[%clk 0:00:39.9]} 45. Rd3 {[%clk 0:00:19.5]} 45... Nd7 {[%clk 0:00:37.4]}
46. Ne4 {[%clk 0:00:17.2]} 46... f5 {[%clk 0:00:33.8]} 47. Ng3 {[%clk
0:00:15.2]} 47... Rb2 {[%clk 0:00:32.6]} 48. d6 {[%clk 0:00:14.2]} 48... Ngf6
{[%clk 0:00:31.9]} 49. Bc6 {[%clk 0:00:13.2]} 49... Kf7 {[%clk 0:00:32.2]} 50.
Bxd7 {[%clk 0:00:12.7]} 50... Nxd7 {[%clk 0:00:32.7]} 51. c5 {[%clk 0:00:13]}
51... Nxc5 {[%clk 0:00:30.5]} 52. d7 {[%clk 0:00:13.4]} 52... Nxd7 {[%clk
0:00:30.6]} 53. Rxd7+ {[%clk 0:00:13.2]} 53... Kf6 {[%clk 0:00:31.5]} 54. Rd3
{[%clk 0:00:12.9]} 54... g5 {[%clk 0:00:30.6]} 55. Nf1 {[%clk 0:00:11.1]} 55...
f4 {[%clk 0:00:29.7]} 56. Nd2 {[%clk 0:00:11.1]} 56... Kf5 {[%clk 0:00:28]} 57.
Kf2 {[%clk 0:00:11.3]} 57... h5 {[%clk 0:00:26.2]} 58. Kf3 {[%clk 0:00:11.6]}
58... g4+ {[%clk 0:00:26.1]} 59. hxg4+ {[%clk 0:00:12.5]} 59... hxg4+ {[%clk
0:00:26.6]} 60. Kf2 {[%clk 0:00:13]} 60... Ke5 {[%clk 0:00:26.1]} 61. Ke1 {[%clk
0:00:12.9]} 61... Kf5 {[%clk 0:00:25.9]} 62. Rd5+ {[%clk 0:00:12.5]} 62... Ke6
{[%clk 0:00:24.4]} 63. Rxa5 {[%clk 0:00:12.6]} 63... f3 {[%clk 0:00:24.3]} 64.
Rg5 {[%clk 0:00:10.7]} 64... f2+ {[%clk 0:00:20.7]} 65. Ke2 {[%clk 0:00:11]}
65... Rxd2+ {[%clk 0:00:20.8]} 66. Kf1 {[%clk 0:00:11.4]} 66... Rd3 {[%clk
0:00:17.4]} 67. Rxg4 {[%clk 0:00:11.7]} 67... Rxb3 {[%clk 0:00:18]} 68. Rg5
{[%clk 0:00:11.1]} 68... Rb2 {[%clk 0:00:16.7]} 69. a5 {[%clk 0:00:11.3]} 69...
Kd6 {[%clk 0:00:16.9]} 70. a6 {[%clk 0:00:11.7]} 70... Kc7 {[%clk 0:00:16.9]}
71. Rb5 {[%clk 0:00:11.1]} 71... Ra2 {[%clk 0:00:15.3]} 72. a7 {[%clk
0:00:10.7]} 72... Rxa7 {[%clk 0:00:15.2]} 73. Rxb4 {[%clk 0:00:11.1]} 73... Ra2
{[%clk 0:00:15.5]} 74. Rf4 {[%clk 0:00:11.3]} 74... Kd6 {[%clk 0:00:16]} 75.
Rxf2 {[%clk 0:00:12.2]} 75... Rxf2+ {[%clk 0:00:16.1]} 76. Kxf2 {[%clk
0:00:12.4]} 1/2-1/2